[Event "Titled Tuesday Blitz November 14 Early 2023"]
[White "Galchenko, Matvey"]
[Black "Csonka, Balazs"]
[WhiteFideId "24175480"]
[BlackFideId "742910"]
[WhiteElo "2938"]
[BlackElo "2733"]
[Result "1-0"]
[Round "6"]
[TimeControl "180+1"]
[Date "2023.11.14"]
[WhiteClock "0:00:34"]
[BlackClock "0:00:01"]
[Board "37"]

1. f4 {[%clk 0:02:53]}  Nh6 {[%clk 0:02:57]} 2. Nf3 {[%clk 0:02:52]}  g6 {[%clk 0:02:56]} 3. g3 {[%clk 0:02:53]}  Bg7 {[%clk 0:02:56]} 4. d3 {[%clk 0:02:53]}  O-O {[%clk 0:02:55]} 5. e4 {[%clk 0:02:53]}  d5 {[%clk 0:02:49]} 6. Qe2 {[%clk 0:02:53]}  c5 {[%clk 0:02:45]} 7. Bg2 {[%clk 0:02:51]}  Nc6 {[%clk 0:02:44]} 8. h3 {[%clk 0:02:47]}  dxe4 {[%clk 0:02:24]} 9. dxe4 {[%clk 0:02:48]}  Qb6 {[%clk 0:01:47]} 10. Nc3 {[%clk 0:02:35]}  Nd4 {[%clk 0:01:45]} 11. Qf2 {[%clk 0:02:33]}  Be6 {[%clk 0:01:31]} 12. O-O {[%clk 0:02:29]}  Rad8 {[%clk 0:01:30]} 13. Re1 {[%clk 0:02:25]}  Kh8 {[%clk 0:01:23]} 14. Kh2 {[%clk 0:02:19]}  Ng8 {[%clk 0:01:16]} 15. e5 {[%clk 0:02:13]}  Nh6 {[%clk 0:01:14]} 16. Ne4 {[%clk 0:02:11]}  Bd5 {[%clk 0:00:59]} 17. c3 {[%clk 0:02:06]}  Nxf3+ {[%clk 0:00:56]} 18. Bxf3 {[%clk 0:01:59]}  Qc6 {[%clk 0:00:52]} 19. b3 {[%clk 0:01:39]}  f5 {[%clk 0:00:36]} 20. Ng5 {[%clk 0:01:29]}  Nf7 {[%clk 0:00:32]} 21. Bxd5 {[%clk 0:01:24]}  Rxd5 {[%clk 0:00:31]} 22. Nf3 {[%clk 0:01:24]}  Rfd8 {[%clk 0:00:28]} 23. Be3 {[%clk 0:01:22]}  b6 {[%clk 0:00:28]} 24. Qe2 {[%clk 0:01:16]}  g5 {[%clk 0:00:21]} 25. Rad1 {[%clk 0:01:12]}  gxf4 {[%clk 0:00:20]} 26. gxf4 {[%clk 0:00:58]}  e6 {[%clk 0:00:21]} 27. c4 {[%clk 0:00:57]}  Rxd1 {[%clk 0:00:20]} 28. Rxd1 {[%clk 0:00:58]}  Rxd1 {[%clk 0:00:20]} 29. Qxd1 {[%clk 0:00:59]}  Qe4 {[%clk 0:00:20]} 30. Bc1 {[%clk 0:00:54]}  h6 {[%clk 0:00:10]} 31. Kg3 {[%clk 0:00:53]}  Kh7 {[%clk 0:00:10]} 32. Qd7 {[%clk 0:00:53]}  Nh8 {[%clk 0:00:06]} 33. Qxe6 {[%clk 0:00:53]}  Ng6 {[%clk 0:00:07]} 34. Qd7 {[%clk 0:00:46]}  Qc2 {[%clk 0:00:05]} 35. Bd2 {[%clk 0:00:41]}  h5 {[%clk 0:00:02]} 36. e6 {[%clk 0:00:38]}  h4+ {[%clk 0:00:02]} 37. Nxh4 {[%clk 0:00:37]}  Nxh4 {[%clk 0:00:03]} 38. Kxh4 {[%clk 0:00:38]}  Qe4 {[%clk 0:00:02]} 39. Kg3 {[%clk 0:00:35]}  Kg6 {[%clk 0:00:02]} 40. e7 {[%clk 0:00:34]}  Bf6 {[%clk 0:00:01]} 41. e8=Q+ {[%clk 0:00:34]} 1-0


[Site "https://www.chess.com"]

[Event "Titled Tuesday Blitz November 14 Early 2023"]
[White "Baskakov, Egor"]
[Black "djokovic74"]
[WhiteFideId "24197866"]
[WhiteElo "2906"]
[BlackElo "2728"]
[Result "1-0"]
[Round "6"]
[TimeControl "180+1"]
[Date "2023.11.14"]
[WhiteClock "0:00:12"]
[BlackClock "0:00:00"]
[Board "38"]

1. e4 {[%clk 0:03:00]}  e6 {[%clk 0:03:00]} 2. Nc3 {[%clk 0:03:00]}  d5 {[%clk 0:03:00]} 3. g3 {[%clk 0:03:01]}  Nf6 {[%clk 0:03:00]} 4. Bg2 {[%clk 0:03:01]}  Be7 {[%clk 0:03:00]} 5. Nge2 {[%clk 0:03:01]}  O-O {[%clk 0:02:57]} 6. O-O {[%clk 0:03:01]}  dxe4 {[%clk 0:02:55]} 7. Nxe4 {[%clk 0:03:01]}  Nxe4 {[%clk 0:02:50]} 8. Bxe4 {[%clk 0:03:02]}  Nd7 {[%clk 0:02:49]} 9. Bg2 {[%clk 0:03:02]}  Nf6 {[%clk 0:02:50]} 10. d4 {[%clk 0:03:03]}  c6 {[%clk 0:02:50]} 11. c4 {[%clk 0:03:03]}  Bd6 {[%clk 0:02:45]} 12. h3 {[%clk 0:03:02]}  Qe7 {[%clk 0:02:34]} 13. Nc3 {[%clk 0:02:58]}  Rd8 {[%clk 0:02:31]} 14. Re1 {[%clk 0:02:53]}  h6 {[%clk 0:02:19]} 15. Qc2 {[%clk 0:02:47]}  Bd7 {[%clk 0:02:00]} 16. Be3 {[%clk 0:02:45]}  Rac8 {[%clk 0:01:55]} 17. Rad1 {[%clk 0:02:45]}  Be8 {[%clk 0:01:48]} 18. Qb3 {[%clk 0:02:41]}  b6 {[%clk 0:01:46]} 19. Re2 {[%clk 0:02:35]}  Qc7 {[%clk 0:01:44]} 20. Rde1 {[%clk 0:02:33]}  c5 {[%clk 0:01:19]} 21. d5 {[%clk 0:02:31]}  exd5 {[%clk 0:01:19]} 22. Nxd5 {[%clk 0:02:32]}  Nxd5 {[%clk 0:01:18]} 23. Bxd5 {[%clk 0:02:32]}  Bc6 {[%clk 0:01:18]} 24. Bxc6 {[%clk 0:02:13]}  Qxc6 {[%clk 0:01:16]} 25. Bd2 {[%clk 0:02:03]}  Re8 {[%clk 0:00:48]} 26. Qd3 {[%clk 0:01:59]}  Bc7 {[%clk 0:00:44]} 27. Bc3 {[%clk 0:01:56]}  Rxe2 {[%clk 0:00:36]} 28. Qxe2 {[%clk 0:01:56]}  Qd7 {[%clk 0:00:30]} 29. Kg2 {[%clk 0:01:48]}  Rd8 {[%clk 0:00:30]} 30. Qf3 {[%clk 0:01:48]}  Bd6 {[%clk 0:00:22]} 31. Rd1 {[%clk 0:01:47]}  Qc7 {[%clk 0:00:21]} 32. Rd5 {[%clk 0:01:41]}  Bf8 {[%clk 0:00:19]} 33. b3 {[%clk 0:01:39]}  Qc8 {[%clk 0:00:17]} 34. h4 {[%clk 0:01:30]}  Rxd5 {[%clk 0:00:17]} 35. Qxd5 {[%clk 0:01:30]}  Qc7 {[%clk 0:00:13]} 36. Be5 {[%clk 0:01:29]}  Qe7 {[%clk 0:00:14]} 37. Kf3 {[%clk 0:01:28]}  Qe8 {[%clk 0:00:09]} 38. Bf4 {[%clk 0:01:21]}  Qe7 {[%clk 0:00:08]} 39. Qa8 {[%clk 0:01:18]}  Qd7 {[%clk 0:00:07]} 40. Kg2 {[%clk 0:01:17]}  h5 {[%clk 0:00:03]} 41. Bb8 {[%clk 0:01:15]}  a5 {[%clk 0:00:04]} 42. Bf4 {[%clk 0:01:13]}  f6 {[%clk 0:00:03]} 43. Qf3 {[%clk 0:01:07]}  g6 {[%clk 0:00:03]} 44. Qe4 {[%clk 0:01:05]}  Kf7 {[%clk 0:00:03]} 45. Qa8 {[%clk 0:00:57]}  Be7 {[%clk 0:00:02]} 46. Qh8 {[%clk 0:00:56]}  Qf5 {[%clk 0:00:02]} 47. Qh7+ {[%clk 0:00:55]}  Ke6 {[%clk 0:00:02]} 48. Qg8+ {[%clk 0:00:55]}  Kd7 {[%clk 0:00:02]} 49. Qb8 {[%clk 0:00:54]}  Qe4+ {[%clk 0:00:02]} 50. Kh2 {[%clk 0:00:53]}  Qc6 {[%clk 0:00:02]} 51. Qg8 {[%clk 0:00:53]}  Qe4 {[%clk 0:00:02]} 52. Qb8 {[%clk 0:00:48]}  Qc6 {[%clk 0:00:02]} 53. Kg1 {[%clk 0:00:47]}  Ke6 {[%clk 0:00:02]} 54. Qg8+ {[%clk 0:00:46]}  Kf5 {[%clk 0:00:02]} 55. Qf7 {[%clk 0:00:43]}  Kg4 {[%clk 0:00:02]} 56. Qxg6+ {[%clk 0:00:33]}  Kf3 {[%clk 0:00:02]} 57. Qxh5+ {[%clk 0:00:28]}  Ke4 {[%clk 0:00:02]} 58. Qg4 {[%clk 0:00:27]}  f5 {[%clk 0:00:02]} 59. Qe2+ {[%clk 0:00:26]}  Kd4 {[%clk 0:00:03]} 60. Qxe7 {[%clk 0:00:24]}  Kd3 {[%clk 0:00:03]} 61. Qe3+ {[%clk 0:00:24]}  Kc2 {[%clk 0:00:04]} 62. Qd2+ {[%clk 0:00:23]}  Kb1 {[%clk 0:00:04]} 63. Be5 {[%clk 0:00:24]}  Qe4 {[%clk 0:00:01]} 64. Qd1+ {[%clk 0:00:24]}  Kxa2 {[%clk 0:00:01]} 65. Bg7 {[%clk 0:00:17]}  f4 {[%clk 0:00:01]} 66. Qd2+ {[%clk 0:00:17]}  Kxb3 {[%clk 0:00:01]} 67. Qxf4 {[%clk 0:00:17]}  Qb1+ {[%clk 0:00:01]} 68. Kg2 {[%clk 0:00:17]}  a4 {[%clk 0:00:02]} 69. h5 {[%clk 0:00:17]}  a3 {[%clk 0:00:02]} 70. h6 {[%clk 0:00:17]}  a2 {[%clk 0:00:03]} 71. Qf6 {[%clk 0:00:17]}  Qe4+ {[%clk 0:00:02]} 72. Kh2 {[%clk 0:00:17]}  Qe2 {[%clk 0:00:02]} 73. Qc3+ {[%clk 0:00:13]}  Ka4 {[%clk 0:00:02]} 74. Qb2 {[%clk 0:00:13]}  Qxc4 {[%clk 0:00:01]} 75. h7 {[%clk 0:00:12]}  Qf7 {[%clk 0:00:00]} 76. h8=Q {[%clk 0:00:12]} 1-0


[Site "https://www.chess.com"]

[Event "Titled Tuesday Blitz November 14 Early 2023"]
[White "Begmuratov, Alisher"]
[Black "Chigaev, Maksim"]
[WhiteFideId "14203367"]
[BlackFideId "4108116"]
[WhiteElo "2717"]
[BlackElo "2897"]
[Result "0-1"]
[Round "6"]
[TimeControl "180+1"]
[Date "2023.11.14"]
[WhiteClock "0:00:08"]
[BlackClock "0:00:10"]
[Board "40"]

1. e4 {[%clk 0:03:00]}  c5 {[%clk 0:02:59]} 2. Nf3 {[%clk 0:03:00]}  d6 {[%clk 0:02:59]} 3. Bb5+ {[%clk 0:03:00]}  Nc6 {[%clk 0:02:57]} 4. O-O {[%clk 0:02:59]}  Bd7 {[%clk 0:02:57]} 5. Re1 {[%clk 0:02:59]}  Nf6 {[%clk 0:02:56]} 6. h3 {[%clk 0:02:57]}  a6 {[%clk 0:02:57]} 7. Bf1 {[%clk 0:02:56]}  e5 {[%clk 0:02:53]} 8. c3 {[%clk 0:02:56]}  Be7 {[%clk 0:02:54]} 9. d4 {[%clk 0:02:55]}  h6 {[%clk 0:02:48]} 10. Na3 {[%clk 0:02:55]}  O-O {[%clk 0:02:48]} 11. dxc5 {[%clk 0:02:51]}  dxc5 {[%clk 0:02:48]} 12. Nc4 {[%clk 0:02:52]}  Qc7 {[%clk 0:02:48]} 13. Qc2 {[%clk 0:02:52]}  b5 {[%clk 0:02:33]} 14. Ne3 {[%clk 0:02:49]}  Be6 {[%clk 0:02:34]} 15. Nf5 {[%clk 0:02:35]}  Rfd8 {[%clk 0:02:19]} 16. g4 {[%clk 0:02:26]}  Nh7 {[%clk 0:02:12]} 17. a4 {[%clk 0:02:19]}  c4 {[%clk 0:01:51]} 18. Be3 {[%clk 0:02:11]}  Bg5 {[%clk 0:01:38]} 19. Qc1 {[%clk 0:02:01]}  Bxe3 {[%clk 0:01:24]} 20. Qxe3 {[%clk 0:02:02]}  Nf8 {[%clk 0:01:17]} 21. Qc5 {[%clk 0:01:57]}  Bxf5 {[%clk 0:01:05]} 22. exf5 {[%clk 0:01:58]}  Nd7 {[%clk 0:01:05]} 23. Qe3 {[%clk 0:01:54]}  Re8 {[%clk 0:00:58]} 24. axb5 {[%clk 0:01:46]}  axb5 {[%clk 0:00:58]} 25. Rxa8 {[%clk 0:01:46]}  Rxa8 {[%clk 0:00:58]} 26. Nd2 {[%clk 0:01:46]}  Nf6 {[%clk 0:00:55]} 27. Bg2 {[%clk 0:01:43]}  Rd8 {[%clk 0:00:55]} 28. Nf1 {[%clk 0:01:38]}  e4 {[%clk 0:00:51]} 29. Bxe4 {[%clk 0:01:29]}  Re8 {[%clk 0:00:46]} 30. Ng3 {[%clk 0:01:29]}  Ne5 {[%clk 0:00:43]} 31. Qc1 {[%clk 0:01:17]}  Nxe4 {[%clk 0:00:17]} 32. Rxe4 {[%clk 0:01:09]}  Nf3+ {[%clk 0:00:18]} 33. Kg2 {[%clk 0:00:52]}  Nh4+ {[%clk 0:00:18]} 34. Kf1 {[%clk 0:00:50]}  Rxe4 {[%clk 0:00:08]} 35. Nxe4 {[%clk 0:00:51]}  Qh2 {[%clk 0:00:08]} 36. Qe3 {[%clk 0:00:50]}  Qh1+ {[%clk 0:00:09]} 37. Ke2 {[%clk 0:00:49]}  Qb1 {[%clk 0:00:04]} 38. f6 {[%clk 0:00:47]}  Qxb2+ {[%clk 0:00:04]} 39. Nd2 {[%clk 0:00:47]}  gxf6 {[%clk 0:00:04]} 40. Qxh6 {[%clk 0:00:43]}  Ng6 {[%clk 0:00:05]} 41. Qe3 {[%clk 0:00:43]}  b4 {[%clk 0:00:05]} 42. cxb4 {[%clk 0:00:40]}  c3 {[%clk 0:00:05]} 43. Qd4 {[%clk 0:00:36]}  Ne5 {[%clk 0:00:03]} 44. g5 {[%clk 0:00:31]}  Nc6 {[%clk 0:00:03]} 45. Qe3 {[%clk 0:00:21]}  cxd2 {[%clk 0:00:03]} 46. Qe8+ {[%clk 0:00:13]}  Kg7 {[%clk 0:00:03]} 47. gxf6+ {[%clk 0:00:14]}  Qxf6 {[%clk 0:00:04]} 48. Kxd2 {[%clk 0:00:14]}  Nxb4 {[%clk 0:00:03]} 49. Qe3 {[%clk 0:00:11]}  Qb2+ {[%clk 0:00:04]} 50. Kd1 {[%clk 0:00:10]}  Qb1+ {[%clk 0:00:04]} 51. Ke2 {[%clk 0:00:09]}  Qc2+ {[%clk 0:00:05]} 52. Kf3 {[%clk 0:00:09]}  Qd3 {[%clk 0:00:05]} 53. Qxd3 {[%clk 0:00:09]}  Nxd3 {[%clk 0:00:06]} 54. Ke3 {[%clk 0:00:10]}  Nc5 {[%clk 0:00:06]} 55. Kd4 {[%clk 0:00:10]}  Ne6+ {[%clk 0:00:07]} 56. Ke5 {[%clk 0:00:09]}  Kg6 {[%clk 0:00:07]} 57. Ke4 {[%clk 0:00:09]}  Ng5+ {[%clk 0:00:07]} 58. Kf4 {[%clk 0:00:09]}  Nxh3+ {[%clk 0:00:08]} 59. Kg4 {[%clk 0:00:10]}  Ng5 {[%clk 0:00:09]} 60. f4 {[%clk 0:00:11]}  f5+ {[%clk 0:00:09]} 61. Kg3 {[%clk 0:00:08]}  Ne6 {[%clk 0:00:10]} 0-1


[Site "https://www.chess.com"]

[Event "Titled Tuesday Blitz November 14 Early 2023"]
[White "Klukin, Kirill"]
[Black "Ladopoulos, Dimitrios"]
[WhiteFideId "24199273"]
[BlackFideId "4239580"]
[WhiteElo "2857"]
[BlackElo "2714"]
[Result "1-0"]
[Round "6"]
[TimeControl "180+1"]
[Date "2023.11.14"]
[WhiteClock "0:01:23"]
[BlackClock "0:00:39"]
[Board "41"]

1. d4 {[%clk 0:03:00]}  d5 {[%clk 0:02:54]} 2. c4 {[%clk 0:03:01]}  e6 {[%clk 0:02:55]} 3. Nc3 {[%clk 0:03:01]}  Nf6 {[%clk 0:02:54]} 4. Bg5 {[%clk 0:03:00]}  Be7 {[%clk 0:02:52]} 5. Nf3 {[%clk 0:03:00]}  dxc4 {[%clk 0:02:45]} 6. e3 {[%clk 0:03:00]}  a6 {[%clk 0:02:45]} 7. Bxc4 {[%clk 0:02:55]}  b5 {[%clk 0:02:45]} 8. Bd3 {[%clk 0:02:56]}  Bb7 {[%clk 0:02:44]} 9. Qc2 {[%clk 0:02:56]}  c5 {[%clk 0:02:43]} 10. dxc5 {[%clk 0:02:37]}  Nbd7 {[%clk 0:02:06]} 11. b4 {[%clk 0:02:29]}  a5 {[%clk 0:02:06]} 12. Nxb5 {[%clk 0:02:24]}  Bxf3 {[%clk 0:01:31]} 13. gxf3 {[%clk 0:02:21]}  Ne5 {[%clk 0:01:31]} 14. Be2 {[%clk 0:02:11]}  axb4 {[%clk 0:01:26]} 15. Bf4 {[%clk 0:01:50]}  Qb8 {[%clk 0:00:39]} 16. Qb2 {[%clk 0:01:23]} 1-0


[Site "https://www.chess.com"]

[Event "Titled Tuesday Blitz November 14 Early 2023"]
[White "Mikhailovsky, Vladimir"]
[Black "Hua, Lefong"]
[WhiteFideId "34105414"]
[BlackFideId "2602253"]
[WhiteElo "2822"]
[BlackElo "2693"]
[Result "0-1"]
[Round "6"]
[TimeControl "180+1"]
[Date "2023.11.14"]
[WhiteClock "0:00:00"]
[BlackClock "0:01:08"]
[Board "43"]

1. e4 {[%clk 0:03:00]}  c5 {[%clk 0:02:59]} 2. Nf3 {[%clk 0:03:00]}  g6 {[%clk 0:02:58]} 3. d4 {[%clk 0:03:00]}  cxd4 {[%clk 0:02:59]} 4. Qxd4 {[%clk 0:03:00]}  Nf6 {[%clk 0:02:59]} 5. Nc3 {[%clk 0:03:00]}  Nc6 {[%clk 0:02:59]} 6. Qa4 {[%clk 0:03:01]}  d6 {[%clk 0:02:59]} 7. e5 {[%clk 0:03:01]}  dxe5 {[%clk 0:02:59]} 8. Nxe5 {[%clk 0:03:02]}  Bg7 {[%clk 0:03:00]} 9. Bb5 {[%clk 0:03:01]}  O-O {[%clk 0:03:00]} 10. Nxc6 {[%clk 0:03:02]}  bxc6 {[%clk 0:03:01]} 11. Bxc6 {[%clk 0:03:02]}  Bd7 {[%clk 0:03:00]} 12. Bxd7 {[%clk 0:03:00]}  Qxd7 {[%clk 0:02:56]} 13. Qxd7 {[%clk 0:03:00]}  Nxd7 {[%clk 0:02:55]} 14. Bd2 {[%clk 0:02:50]}  Rfc8 {[%clk 0:02:45]} 15. O-O-O {[%clk 0:02:49]}  Nb6 {[%clk 0:02:41]} 16. Rhe1 {[%clk 0:02:25]}  e6 {[%clk 0:02:36]} 17. Ne4 {[%clk 0:02:05]}  Nc4 {[%clk 0:02:31]} 18. Bc3 {[%clk 0:02:03]}  Bxc3 {[%clk 0:02:29]} 19. Nxc3 {[%clk 0:01:58]}  Nxb2 {[%clk 0:02:25]} 20. Kxb2 {[%clk 0:01:46]}  Rab8+ {[%clk 0:02:24]} 21. Kc1 {[%clk 0:01:46]}  Rxc3 {[%clk 0:02:24]} 22. Rd7 {[%clk 0:01:41]}  Ra3 {[%clk 0:02:17]} 23. Re3 {[%clk 0:01:30]}  Rxa2 {[%clk 0:02:11]} 24. Rf3 {[%clk 0:01:30]}  Rc8 {[%clk 0:01:51]} 25. Rfxf7 {[%clk 0:00:56]}  Rcxc2+ {[%clk 0:01:42]} 26. Kb1 {[%clk 0:00:57]}  Rcb2+ {[%clk 0:01:36]} 27. Kc1 {[%clk 0:00:56]}  Rxf2 {[%clk 0:01:23]} 28. Rg7+ {[%clk 0:00:20]}  Kf8 {[%clk 0:01:21]} 29. Kb1 {[%clk 0:00:00]}  Rae2 {[%clk 0:01:08]} 0-1


[Site "https://www.chess.com"]

[Event "Titled Tuesday Blitz November 14 Early 2023"]
[White "Vlassov, Nikolai"]
[Black "Lobanov, Sergei"]
[WhiteFideId "4103360"]
[BlackFideId "24183750"]
[WhiteElo "2605"]
[BlackElo "2808"]
[Result "1-0"]
[Round "6"]
[TimeControl "180+1"]
[Date "2023.11.14"]
[WhiteClock "0:00:32"]
[BlackClock "0:00:02"]
[Board "45"]

1. e4 {[%clk 0:03:00]}  e5 {[%clk 0:02:55]} 2. Bc4 {[%clk 0:02:56]}  Nf6 {[%clk 0:02:54]} 3. d3 {[%clk 0:02:56]}  Nc6 {[%clk 0:02:53]} 4. Nf3 {[%clk 0:02:56]}  Bc5 {[%clk 0:02:53]} 5. Bg5 {[%clk 0:02:55]}  d6 {[%clk 0:02:52]} 6. Nc3 {[%clk 0:02:54]}  h6 {[%clk 0:02:51]} 7. Bh4 {[%clk 0:02:54]}  g5 {[%clk 0:02:45]} 8. Bg3 {[%clk 0:02:54]}  a6 {[%clk 0:02:45]} 9. Nd2 {[%clk 0:02:52]}  Qe7 {[%clk 0:02:30]} 10. h4 {[%clk 0:02:50]}  g4 {[%clk 0:02:26]} 11. h5 {[%clk 0:02:50]}  Be6 {[%clk 0:02:11]} 12. Bh4 {[%clk 0:02:49]}  Bxc4 {[%clk 0:02:11]} 13. Nxc4 {[%clk 0:02:49]}  Qe6 {[%clk 0:02:12]} 14. Ne3 {[%clk 0:02:32]}  Rg8 {[%clk 0:01:10]} 15. Ned5 {[%clk 0:02:06]}  Nxd5 {[%clk 0:01:07]} 16. exd5 {[%clk 0:01:57]}  Qd7 {[%clk 0:01:03]} 17. dxc6 {[%clk 0:01:57]}  Qxc6 {[%clk 0:01:04]} 18. Ne4 {[%clk 0:01:41]}  f5 {[%clk 0:00:53]} 19. Nf6+ {[%clk 0:01:30]}  Kf8 {[%clk 0:00:54]} 20. Nxg8 {[%clk 0:01:29]}  Qxg2 {[%clk 0:00:54]} 21. Kd2 {[%clk 0:01:13]}  Kxg8 {[%clk 0:00:42]} 22. Qe2 {[%clk 0:01:11]}  Kf7 {[%clk 0:00:34]} 23. c3 {[%clk 0:01:11]}  Re8 {[%clk 0:00:25]} 24. Rae1 {[%clk 0:01:10]}  Bb6 {[%clk 0:00:24]} 25. Kc2 {[%clk 0:01:09]}  Qd5 {[%clk 0:00:19]} 26. Kb1 {[%clk 0:01:08]}  a5 {[%clk 0:00:17]} 27. Rhf1 {[%clk 0:01:03]}  Qf3 {[%clk 0:00:07]} 28. Qxf3 {[%clk 0:00:58]}  gxf3 {[%clk 0:00:08]} 29. Rg1 {[%clk 0:00:59]}  e4 {[%clk 0:00:07]} 30. d4 {[%clk 0:00:47]}  d5 {[%clk 0:00:04]} 31. Rg6 {[%clk 0:00:45]}  Re6 {[%clk 0:00:02]} 32. Rxe6 {[%clk 0:00:43]}  Kxe6 {[%clk 0:00:03]} 33. Rg1 {[%clk 0:00:43]}  f4 {[%clk 0:00:04]} 34. Kc2 {[%clk 0:00:42]}  c6 {[%clk 0:00:03]} 35. Rg6+ {[%clk 0:00:42]}  Kd7 {[%clk 0:00:04]} 36. Rxh6 {[%clk 0:00:40]}  e3 {[%clk 0:00:04]} 37. Kd3 {[%clk 0:00:39]}  e2 {[%clk 0:00:04]} 38. Kd2 {[%clk 0:00:39]}  c5 {[%clk 0:00:05]} 39. Bf6 {[%clk 0:00:37]}  cxd4 {[%clk 0:00:02]} 40. Bxd4 {[%clk 0:00:37]}  Bd8 {[%clk 0:00:03]} 41. Rh7+ {[%clk 0:00:35]}  Kd6 {[%clk 0:00:02]} 42. h6 {[%clk 0:00:32]} 1-0


[Site "https://www.chess.com"]

[Event "Titled Tuesday Blitz November 14 Early 2023"]
[White "Vestby-Ellingsen, Mads"]
[Black "Vakhlamov, Igor L."]
[WhiteFideId "1520857"]
[BlackFideId "24126748"]
[WhiteElo "2571"]
[BlackElo "2798"]
[Result "0-1"]
[Round "6"]
[TimeControl "180+1"]
[Date "2023.11.14"]
[WhiteClock "0:00:00"]
[BlackClock "0:01:18"]
[Board "55"]

1. e4 {[%clk 0:03:00]}  c5 {[%clk 0:03:00]} 2. Nf3 {[%clk 0:03:00]}  e6 {[%clk 0:03:01]} 3. d4 {[%clk 0:03:00]}  cxd4 {[%clk 0:03:01]} 4. Bg5 {[%clk 0:03:00]}  Qc7 {[%clk 0:03:01]} 5. c3 {[%clk 0:03:00]}  dxc3 {[%clk 0:02:56]} 6. Nxc3 {[%clk 0:03:01]}  a6 {[%clk 0:02:55]} 7. Rc1 {[%clk 0:03:01]}  Nc6 {[%clk 0:02:55]} 8. Bd3 {[%clk 0:02:57]}  Be7 {[%clk 0:02:55]} 9. Qd2 {[%clk 0:02:53]}  d6 {[%clk 0:02:52]} 10. O-O {[%clk 0:02:49]}  Bd7 {[%clk 0:02:51]} 11. Nd5 {[%clk 0:02:44]}  exd5 {[%clk 0:02:50]} 12. exd5 {[%clk 0:02:44]}  Nf6 {[%clk 0:02:42]} 13. dxc6 {[%clk 0:02:38]}  Bxc6 {[%clk 0:02:42]} 14. Bxf6 {[%clk 0:02:17]}  Bxf6 {[%clk 0:02:43]} 15. Rfe1+ {[%clk 0:02:17]}  Kf8 {[%clk 0:02:42]} 16. Be4 {[%clk 0:02:05]}  h5 {[%clk 0:02:40]} 17. Nd4 {[%clk 0:01:51]}  Bxd4 {[%clk 0:02:32]} 18. Qxd4 {[%clk 0:01:51]}  Rh6 {[%clk 0:02:32]} 19. Re3 {[%clk 0:01:46]}  Re8 {[%clk 0:02:02]} 20. Rg3 {[%clk 0:01:31]}  Rf6 {[%clk 0:01:57]} 21. Bxc6 {[%clk 0:01:25]}  bxc6 {[%clk 0:01:58]} 22. Qa4 {[%clk 0:01:11]}  Qb6 {[%clk 0:01:53]} 23. Qc2 {[%clk 0:01:05]}  d5 {[%clk 0:01:53]} 24. Rb3 {[%clk 0:00:54]}  Qd4 {[%clk 0:01:51]} 25. g3 {[%clk 0:00:52]}  g6 {[%clk 0:01:50]} 26. Rc3 {[%clk 0:00:51]}  Ree6 {[%clk 0:01:49]} 27. Rd3 {[%clk 0:00:48]}  Qe4 {[%clk 0:01:47]} 28. Ra3 {[%clk 0:00:43]}  Qg4 {[%clk 0:01:39]} 29. Rxa6 {[%clk 0:00:37]}  Re2 {[%clk 0:01:38]} 30. Qc5+ {[%clk 0:00:36]}  Kg7 {[%clk 0:01:37]} 31. Rxc6 {[%clk 0:00:17]}  Rfxf2 {[%clk 0:01:36]} 32. Qxf2 {[%clk 0:00:16]}  Rxf2 {[%clk 0:01:37]} 33. Kxf2 {[%clk 0:00:17]}  Qd4+ {[%clk 0:01:38]} 34. Ke2 {[%clk 0:00:17]}  Qxb2+ {[%clk 0:01:38]} 35. R6c2 {[%clk 0:00:16]}  Qe5+ {[%clk 0:01:38]} 36. Kf1 {[%clk 0:00:16]}  d4 {[%clk 0:01:38]} 37. Rd2 {[%clk 0:00:14]}  h4 {[%clk 0:01:37]} 38. Rcd1 {[%clk 0:00:12]}  hxg3 {[%clk 0:01:37]} 39. hxg3 {[%clk 0:00:12]}  Qxg3 {[%clk 0:01:36]} 40. Rxd4 {[%clk 0:00:13]}  Qf3+ {[%clk 0:01:37]} 41. Kg1 {[%clk 0:00:13]}  Qe3+ {[%clk 0:01:36]} 42. Kf1 {[%clk 0:00:12]}  Qf3+ {[%clk 0:01:34]} 43. Kg1 {[%clk 0:00:11]}  g5 {[%clk 0:01:33]} 44. R1d2 {[%clk 0:00:09]}  f5 {[%clk 0:01:31]} 45. a4 {[%clk 0:00:07]}  g4 {[%clk 0:01:30]} 46. Rf2 {[%clk 0:00:05]}  Qe3 {[%clk 0:01:29]} 47. Rd7+ {[%clk 0:00:05]}  Kg6 {[%clk 0:01:29]} 48. Kg2 {[%clk 0:00:03]}  Qe4+ {[%clk 0:01:28]} 49. Kg1 {[%clk 0:00:02]}  Qxa4 {[%clk 0:01:28]} 50. Rd5 {[%clk 0:00:01]}  Qa1+ {[%clk 0:01:24]} 51. Kh2 {[%clk 0:00:01]}  Qh8+ {[%clk 0:01:24]} 52. Kg1 {[%clk 0:00:02]}  g3 {[%clk 0:01:19]} 53. Rg2 {[%clk 0:00:01]}  f4 {[%clk 0:01:19]} 54. Rd6+ {[%clk 0:00:01]}  Kf5 {[%clk 0:01:19]} 55. Rd5+ {[%clk 0:00:02]}  Ke4 {[%clk 0:01:19]} 56. Ra5 {[%clk 0:00:01]}  Qc3 {[%clk 0:01:19]} 57. Ra4+ {[%clk 0:00:00]}  Kf3 {[%clk 0:01:18]} 0-1


[Site "https://www.chess.com"]

[Event "Titled Tuesday Blitz November 14 Early 2023"]
[White "Suyarov, Mukhammadzokhid"]
[Black "FREDERICKtheMATE"]
[WhiteFideId "14210495"]
[WhiteElo "2780"]
[BlackElo "2566"]
[Result "1-0"]
[Round "6"]
[TimeControl "180+1"]
[Date "2023.11.14"]
[WhiteClock "0:00:17"]
[BlackClock "0:00:53"]
[Board "56"]

1. e4 {[%clk 0:03:00]}  c5 {[%clk 0:02:59]} 2. Nf3 {[%clk 0:03:00]}  Nc6 {[%clk 0:02:59]} 3. Bb5 {[%clk 0:02:59]}  g6 {[%clk 0:02:58]} 4. O-O {[%clk 0:02:59]}  Bg7 {[%clk 0:02:59]} 5. Re1 {[%clk 0:03:00]}  e5 {[%clk 0:02:55]} 6. c3 {[%clk 0:02:58]}  Nge7 {[%clk 0:02:55]} 7. Na3 {[%clk 0:02:56]}  O-O {[%clk 0:02:54]} 8. Nc4 {[%clk 0:02:55]}  a6 {[%clk 0:02:54]} 9. Bxc6 {[%clk 0:02:55]}  Nxc6 {[%clk 0:02:53]} 10. Nd6 {[%clk 0:02:55]}  Qe7 {[%clk 0:02:50]} 11. Nxc8 {[%clk 0:02:55]}  Raxc8 {[%clk 0:02:51]} 12. d3 {[%clk 0:02:55]}  Rcd8 {[%clk 0:02:50]} 13. Qb3 {[%clk 0:02:50]}  b5 {[%clk 0:02:50]} 14. a4 {[%clk 0:02:49]}  Qe6 {[%clk 0:02:45]} 15. Qxe6 {[%clk 0:02:43]}  dxe6 {[%clk 0:02:46]} 16. axb5 {[%clk 0:02:44]}  axb5 {[%clk 0:02:44]} 17. Be3 {[%clk 0:02:41]}  Rxd3 {[%clk 0:02:41]} 18. Bxc5 {[%clk 0:02:40]}  Rc8 {[%clk 0:02:41]} 19. Kf1 {[%clk 0:02:34]}  b4 {[%clk 0:02:29]} 20. Ke2 {[%clk 0:02:25]}  Rd7 {[%clk 0:02:26]} 21. cxb4 {[%clk 0:02:04]}  Bf8 {[%clk 0:02:25]} 22. Rec1 {[%clk 0:01:55]}  Nxb4 {[%clk 0:02:13]} 23. Bxb4 {[%clk 0:01:23]}  Rxc1 {[%clk 0:02:11]} 24. Ra8 {[%clk 0:01:23]}  Rc2+ {[%clk 0:02:02]} 25. Ke3 {[%clk 0:01:15]}  Rb7 {[%clk 0:01:54]} 26. Rxf8+ {[%clk 0:00:46]}  Kg7 {[%clk 0:01:53]} 27. Nxe5 {[%clk 0:00:46]}  Rxb4 {[%clk 0:01:51]} 28. Rxf7+ {[%clk 0:00:47]}  Kg8 {[%clk 0:01:51]} 29. Ra7 {[%clk 0:00:34]}  Rbxb2 {[%clk 0:01:49]} 30. Ng4 {[%clk 0:00:32]}  h5 {[%clk 0:01:35]} 31. Nf6+ {[%clk 0:00:31]}  Kf8 {[%clk 0:01:34]} 32. f4 {[%clk 0:00:31]}  Rxg2 {[%clk 0:01:30]} 33. Kd4 {[%clk 0:00:31]}  Rb5 {[%clk 0:01:23]} 34. Nd7+ {[%clk 0:00:28]}  Ke8 {[%clk 0:01:22]} 35. Ne5 {[%clk 0:00:24]}  h4 {[%clk 0:01:12]} 36. h3 {[%clk 0:00:23]}  g5 {[%clk 0:01:06]} 37. Ra8+ {[%clk 0:00:17]}  Ke7 {[%clk 0:01:04]} 38. Ra7+ {[%clk 0:00:17]}  Kd8 {[%clk 0:00:58]} 39. Nf7+ {[%clk 0:00:17]}  Ke8 {[%clk 0:00:53]} 40. Nd6+ {[%clk 0:00:17]} 1-0


[Site "https://www.chess.com"]